fUSD/lending_fUSD_20260702
["ID","MTS","AMOUNT","RATE_DAILY","PERIOD"]
[426874546,1782971322000,160.0,0.00019,2]
[426874547,1782971323000,304.47865761,0.0002,2]
[426874548,1782971325000,1000.0,0.000165,2]
[426874550,1782971378000,-1338.21,0.0002132,2]
[426874551,1782971385000,-1090.426,0.0002132,2]
[426874552,1782971429000,-675.281,0.0002132,2]
[426874561,1782971431000,-238.52270823,0.0002142,7]
[426874562,1782971431000,-600.0,0.00021918,2]
[426874563,1782971431000,-600.0,0.00021918,2]
[426874564,1782971431000,-600.0,0.00021918,8]
[426874565,1782971431000,-600.0,0.00021918,8]
[426874560,1782971431000,-952.06571888,0.0002132,2]
[426874570,1782971431000,-442.77515947,0.000235,2]
[426874572,1782971431000,-158.0,0.00024,2]
[426874567,1782971431000,-40.0895183,0.00022277,2]
[426874568,1782971431000,-748.88295367,0.00023,2]
[426874571,1782971431000,-155.0,0.00024,2]
[426874566,1782971431000,-348.8904817,0.00022277,2]
[426874569,1782971431000,-273.06597952,0.00023,2]
[426874590,1782971432000,-500.0,0.00024822,2]
[426874594,1782971432000,-414.04897805,0.00024974,7]
[426874591,1782971432000,-500.0,0.00024822,2]
[426874597,1782971432000,-266.18,0.00024999,2]
[426874596,1782971432000,-500.0,0.00024999,2]
[426874600,1782971432000,-158.0,0.00025,2]
[426874611,1782971432000,-168.68687916,0.00025567,2]
[426874602,1782971432000,-9057.75534118,0.00025,2]
[426874601,1782971432000,-326.85993469,0.00025,2]
[426874599,1782971432000,-155.0,0.00025,2]
[426874603,1782971432000,-162.46974428,0.00025567,2]
[426874604,1782971432000,-231.87182255,0.00025567,2]
[426874608,1782971432000,-205.0552735,0.00025567,2]
[426874605,1782971432000,-197.52282328,0.00025567,2]
[426874598,1782971432000,-500.78392869,0.00024999,2]
[426874610,1782971432000,-279.98754077,0.00025567,2]
[426874595,1782971432000,-3476.41714167,0.00024974,7]
[426874583,1782971432000,-139.008053,0.00024658,2]
[426874592,1782971432000,-153.87,0.00024926,2]
[426874607,1782971432000,-183.38747111,0.00025567,2]
[426874575,1782971432000,-15.9752146,0.00024646,2]
[426874574,1782971432000,-250.3447854,0.00024646,2]
[426874586,1782971432000,-108.87383701,0.00024822,2]
[426874577,1782971432000,-2019.18827656,0.00024646,2]
[426874576,1782971432000,-1706.70172344,0.00024646,2]
[426874578,1782971432000,-5688.13295205,0.00024646,2]
[426874593,1782971432000,-63.90388028,0.00024974,7]
[426874587,1782971432000,-500.0,0.00024822,2]
[426874588,1782971432000,-84.82222643,0.00024822,2]
[426874579,1782971432000,-2642.36652079,0.00024646,2]
[426874580,1782971432000,-1669.49052716,0.00024646,2]
[426874582,1782971432000,-23.761947,0.00024658,2]
[426874584,1782971432000,-500.0,0.00024822,2]
[426874585,1782971432000,-391.12616299,0.00024822,2]
[426874589,1782971432000,-415.17777357,0.00024822,2]
[426874581,1782971432000,-162.14,0.00024658,2]
[426874606,1782971432000,-291.34977699,0.00025567,2]
[426874573,1782971432000,-223.96,0.000246,2]
[426874612,1782971432000,-155.65875478,0.00025567,2]
[426874628,1782971432000,-151.46609221,0.00025568,2]
[426874627,1782971432000,-500.0,0.00025567,2]
[426874632,1782971432000,-194.19484597,0.00025568,2]
[426874650,1782971432000,-500.0,0.00025666,2]
[426874648,1782971432000,-500.0,0.00025666,2]
[426874654,1782971432000,-491.67282185,0.00025799,2]
[426874652,1782971432000,-321.6104551,0.0002579,2]
[426874630,1782971432000,-152.31584336,0.00025568,2]
[426874658,1782971432000,-134971.51628966,0.000258,2]
[426874661,1782971432000,-1604.4064785,0.000258,2]
[426874665,1782971432000,-558.60431167,0.000258,2]
[426874664,1782971432000,-4169.586923,0.000258,2]
[426874663,1782971432000,-1570.93372877,0.000258,2]
[426874667,1782971432000,-284.60163902,0.000258,2]
[426874666,1782971432000,-488.48416866,0.000258,2]
[426874609,1782971432000,-215.85278968,0.00025567,2]
[426874656,1782971432000,-2326.48845219,0.00025799,2]
[426874646,1782971432000,-203.25394183,0.00025568,2]
[426874634,1782971432000,-184.24559507,0.00025568,2]
[426874621,1782971432000,-500.0,0.00025567,2]
[426874615,1782971432000,-521.72993603,0.00025567,2]
[426874616,1782971432000,-500.0,0.00025567,2]
[426874618,1782971432000,-500.0,0.00025567,2]
[426874622,1782971432000,-500.0,0.00025567,2]
[426874619,1782971432000,-404.65133298,0.00025567,2]
[426874624,1782971432000,-500.0,0.00025567,2]
[426874625,1782971432000,-500.0,0.00025567,2]
[426874614,1782971432000,-203.5844184,0.00025567,2]
[426874617,1782971432000,-500.0,0.00025567,2]
[426874623,1782971432000,-500.0,0.00025567,2]
[426874638,1782971432000,-157.2493345,0.00025568,2]
[426874626,1782971432000,-555.18316882,0.00025567,2]
[426874636,1782971432000,-196.05249142,0.00025568,2]
[426874640,1782971432000,-159.90275652,0.00025568,2]
[426874642,1782971432000,-192.40478979,0.00025568,2]
[426874644,1782971432000,-169.9819896,0.00025568,2]
[426874620,1782971432000,-500.0,0.00025567,2]
[426874613,1782971432000,-179.52902042,0.00025567,2]
[426874677,1782971438000,-163.53,0.00024658,2]
[426874678,1782971438000,-471.39215492,0.000258,2]
[426874679,1782971438000,-407.86461,0.000258,2]
[426874683,1782971438000,-1743.87721992,0.000258,2]
[426874681,1782971438000,-1536.42271524,0.000258,2]
[426874682,1782971438000,-19291.9918774,0.000258,2]
[426874680,1782971438000,-3960.77355336,0.000258,2]
[426874715,1782971440000,-1124.99514691,0.000258,2]
[426874714,1782971440000,-814.03707961,0.000258,2]
[426874713,1782971440000,-267.71055479,0.000248,2]
[426874712,1782971440000,-803.13166436,0.000248,2]
[426874722,1782971442000,-441.41523098,0.00025,2]
[426874724,1782971443000,-1497.1899908,0.000258,2]
[426874723,1782971443000,-7412.73476902,0.00025,2]
[426874725,1782971443000,-4824.00732749,0.000258,2]
[426874727,1782971443000,-822.71718827,0.000258,2]
[426874728,1782971443000,-1064.80461404,0.000258,2]
[426874729,1782971443000,-1280.92438489,0.000258,2]
[426874726,1782971443000,-3473.50312884,0.000258,2]
[426874730,1782971443000,-568.38616496,0.000258,2]
[426874734,1782971443000,-1133.09748047,0.000258,2]
[426874732,1782971443000,-4555.88194327,0.000258,2]
[426874733,1782971443000,-1841.94319562,0.000258,2]
[426874736,1782971443000,-694.55969986,0.000258,2]
[426874735,1782971443000,-3254.75174309,0.000258,2]
[426874731,1782971443000,-2649.14871632,0.000258,2]
[426874743,1782971446000,-245.71,0.00024658,2]
[426874744,1782971446000,-1000.0,0.00025799,7]
[426874746,1782971446000,-446.60204153,0.000258,2]
[426874745,1782971446000,-90376.98462899,0.000258,2]
[426874751,1782971464000,-57.565,0.00025799,2]
[426874750,1782971464000,-302.042,0.00025284,2]
[426874757,1782971488000,-500.0,0.00025566,2]
[426874752,1782971488000,-152.59501622,0.00024647,2]
[426874753,1782971488000,-250.0,0.00025542,2]
[426874756,1782971488000,-500.0,0.00025566,2]
[426874754,1782971488000,-213.65650313,0.0002556,2]
[426874755,1782971488000,-187.96733404,0.0002556,2]
[426874758,1782971488000,-500.0,0.00025566,2]
[426874766,1782971488000,-14409.86979861,0.00025647,2]
[426874759,1782971488000,-500.0,0.00025566,2]
[426874762,1782971488000,-500.0,0.00025566,2]
[426874763,1782971488000,-500.0,0.00025566,2]
[426874761,1782971488000,-500.0,0.00025566,2]
[426874764,1782971488000,-500.0,0.00025566,2]
[426874765,1782971488000,-503.111348,0.00025566,2]
[426874760,1782971488000,-500.0,0.00025566,2]
[426874767,1782971508000,1963.9567,0.00024722,120]
[426874768,1782971511000,162.64,0.00024658,2]
[426874770,1782971542000,193.974,0.00024174,2]
[426874769,1782971542000,51.615,0.00024174,2]
[426874771,1782971556000,-279.836,0.00022965,2]
[426874779,1782971869000,52.56,0.00019423,2]
[426874778,1782971869000,153.0,0.00019423,2]
[426874780,1782971976000,243.01,0.00017645,2]
[426874781,1782971978000,-150.0,0.00022964,2]
[426874783,1782971992000,-162.77771037,0.00022964,2]
[426874785,1782971993000,-126.16931565,0.00022964,2]
[426874784,1782971993000,-452.05297398,0.00022964,2]
[426874787,1782972032000,-4797.936,0.00022965,2]
[426874786,1782972032000,-34.674,0.00022965,2]
[426874789,1782972190000,68.386,0.00022964,2]
[426874788,1782972190000,500.0,0.00022964,2]
[426874794,1782972544000,285.01397431,0.00021273,2]
[426874795,1782972632000,-4.42602569,0.00021273,2]
[426874797,1782972632000,-314.52,0.00022337,2]
[426874798,1782972632000,-201.51819642,0.00022865,2]
[426874801,1782972632000,-500.0,0.00022964,2]
[426874802,1782972632000,-385.05280889,0.00022964,2]
[426874803,1782972632000,-196583.71031639,0.00022965,2]
[426874799,1782972632000,-316.43708179,0.00022964,2]
[426874800,1782972632000,-500.0,0.00022964,2]
[426874804,1782972632000,-464.12272072,0.00022965,2]
[426874806,1782972632000,-1242.13954244,0.0002323,2]
[426874805,1782972632000,-7830.67425969,0.00022965,2]
[426874796,1782972632000,-2465.48,0.00021273,2]
[426874823,1782972638000,-9999.99,0.00023567,2]
[426874822,1782972638000,-20538.28,0.00023567,2]
[426874825,1782972638000,-436.82,0.00023567,2]
[426874826,1782972638000,-14241.98,0.00023567,2]
[426874828,1782972638000,-9999.99,0.00023567,2]
[426874836,1782972638000,-1585.52566766,0.00023878,7]
[426874830,1782972638000,-1565.26,0.00023567,2]
[426874835,1782972638000,-600.80188028,0.00023878,7]
[426874827,1782972638000,-4392.41,0.00023567,2]
[426874834,1782972638000,-430.95509067,0.00023821,2]
[426874829,1782972638000,-57230.98,0.00023567,2]
[426874824,1782972638000,-150.99,0.00023567,2]
[426874817,1782972638000,-1577.6,0.00023549,2]
[426874821,1782972638000,-307.26,0.00023567,4]
[426874819,1782972638000,-5928.91778772,0.00023549,2]
[426874818,1782972638000,-999.99,0.00023549,2]
[426874816,1782972638000,-2140.56,0.00023549,2]
[426874814,1782972638000,-2935.60408968,0.00023549,2]
[426874813,1782972638000,-2064.39591032,0.00023549,2]
[426874815,1782972638000,-5709.32,0.00023549,2]
[426874812,1782972638000,-161.44670026,0.00023479,2]
[426874811,1782972638000,-4410.16,0.00023442,2]
[426874809,1782972638000,-1162.08381277,0.0002323,2]
[426874810,1782972638000,-160.44,0.00023422,2]
[426874831,1782972638000,-2562.03,0.00023586,2]
[426874820,1782972638000,-4071.07221228,0.00023549,2]
[426874832,1782972638000,-2404.2233552,0.00023616,2]
[426874864,1782972638000,-2404.2233552,0.00024772,2]
[426874838,1782972638000,-162.0,0.00024,2]
[426874860,1782972638000,-163.06,0.00024726,7]
[426874861,1782972638000,-224.01560631,0.00024731,2]
[426874858,1782972638000,-500.77494742,0.0002471,2]
[426874859,1782972638000,-155.48,0.00024719,2]
[426874857,1782972638000,-155.13,0.00024658,2]
[426874856,1782972638000,-159.31,0.00024658,2]
[426874854,1782972638000,-500.0,0.00024657,2]
[426874833,1782972638000,-847.19,0.0002373,2]
[426874863,1782972638000,-500.0,0.00024731,2]
[426874855,1782972638000,-153.87,0.00024658,2]
[426874852,1782972638000,-942.16,0.00024646,2]
[426874853,1782972638000,-500.0,0.00024657,2]
[426874851,1782972638000,-396.0,0.00024599,2]
[426874862,1782972638000,-322.89340052,0.00024731,2]
[426874841,1782972638000,-2404.2233552,0.00024001,2]
[426874844,1782972638000,-223.97,0.00024217,2]
[426874849,1782972638000,-2404.2233552,0.00024387,2]
[426874837,1782972638000,-160.0,0.00024,2]
[426874848,1782972638000,-5661.4041,0.00024378,7]
[426874843,1782972638000,-500.0,0.00024173,2]
[426874850,1782972638000,-4944.76164127,0.00024558,2]
[426874846,1782972638000,-2797.05521612,0.00024378,7]
[426874847,1782972638000,-4184.22732243,0.00024378,7]
[426874842,1782972638000,-163.80783072,0.00024042,2]
[426874840,1782972638000,-150.0,0.00024,2]
[426874839,1782972638000,-154.0,0.00024,2]
[426874845,1782972638000,-152.0,0.00024374,3]
[426874922,1782972639000,-1030.3340214,0.000257,2]
[426874915,1782972639000,-803.3,0.00025646,2]
[426874912,1782972639000,-357.37499877,0.00025624,2]
[426874921,1782972639000,-357.37499877,0.000257,2]
[426874920,1782972639000,-733.04105757,0.000257,2]
[426874901,1782972639000,-357.37499878,0.00025547,2]
[426874908,1782972639000,-500.0,0.00025618,2]
[426874909,1782972639000,-31346.8309089,0.00025619,2]
[426874907,1782972639000,-299.0,0.00025616,2]
[426874906,1782972639000,-800.0,0.000256,9]
[426874913,1782972639000,-521.36271652,0.00025646,2]
[426874914,1782972639000,-500.32,0.00025646,2]
[426874933,1782972639000,-491.39711385,0.0002579,2]
[426874918,1782972639000,-251.6748145,0.00025647,2]
[426874919,1782972639000,-1600.0,0.000257,9]
[426874917,1782972639000,-15882.5927772,0.00025647,2]
[426874923,1782972639000,-205.69219555,0.000257,4]
[426874924,1782972639000,-434.0718902,0.000257,2]
[426874926,1782972639000,-955.65911071,0.000257,2]
[426874925,1782972639000,-208.68175767,0.000257,2]
[426874932,1782972639000,-503.07519474,0.00025774,2]
[426874927,1782972639000,-2361.8702689,0.00025729,2]
[426874931,1782972639000,-500.0,0.00025773,2]
[426874929,1782972639000,-5287.427964,0.00025729,2]
[426874934,1782972639000,-151.0,0.00025797,7]
[426874911,1782972639000,-34785.9076029,0.00025619,2]
[426874916,1782972639000,-107402.52370239,0.00025647,2]
[426874910,1782972639000,-165350.5880233,0.00025619,2]
[426874888,1782972639000,-162.0,0.00025,2]
[426874904,1782972639000,-484.34010078,0.00025565,2]
[426874930,1782972639000,-4944.7616412,0.00025748,2]
[426874865,1782972639000,-4944.7616412,0.00024796,2]
[426874875,1782972639000,-500.0,0.00024999,2]
[426874879,1782972639000,-50000.0,0.00025,2]
[426874877,1782972639000,-803.3,0.00024999,2]
[426874866,1782972639000,-166.6,0.00024962,2]
[426874870,1782972639000,-500.0,0.00024999,2]
[426874881,1782972639000,-50000.0,0.00025,2]
[426874883,1782972639000,-23620.49,0.00025,2]
[426874873,1782972639000,-500.32,0.00024999,2]
[426874885,1782972639000,-20040.0,0.00025,2]
[426874887,1782972639000,-163.44085051,0.00025,2]
[426874905,1782972639000,-212.54917067,0.00025565,2]
[426874889,1782972639000,-154.0,0.00025,2]
[426874899,1782972639000,-4944.7616412,0.0002551,2]
[426874890,1782972639000,-4944.7616412,0.00025034,2]
[426874891,1782972639000,-206.0,0.00025073,2]
[426874892,1782972639000,-2404.2233552,0.00025158,2]
[426874895,1782972639000,-396.0,0.00025284,2]
[426874894,1782972639000,-4944.7616412,0.00025272,2]
[426874896,1782972639000,-503.0,0.00025315,2]
[426874897,1782972639000,-6872.26,0.000255,2]
[426874893,1782972639000,-500.0,0.00025224,2]
[426874900,1782972639000,-2404.2233552,0.00025543,2]
[426874903,1782972639000,-448.03121262,0.00025565,2]
[426874902,1782972639000,-575.53452319,0.00025547,2]
[426874898,1782972639000,-50000.0,0.000255,2]
[426874928,1782972639000,-25531.403201,0.00025729,2]
[426874868,1782972639000,-152.73395867,0.00024967,2]
[426874935,1782972639000,-500.0,0.00025799,2]
[426874963,1782972639000,-200.0,0.000258,2]
[426874964,1782972639000,-200.0,0.000258,2]
[426874966,1782972639000,-151.0,0.000258,2]
[426874965,1782972639000,-2400.0,0.000258,9]
[426874973,1782972639000,-808.005991,0.000258,2]
[426874972,1782972639000,-808.005991,0.000258,2]
[426874981,1782972639000,-613.71456904,0.0002599,2]
[426874976,1782972639000,-3200.0,0.000259,9]
[426874978,1782972639000,-2404.2233552,0.00025929,2]
[426874980,1782972639000,-4944.7616412,0.00025986,2]
[426874982,1782972639000,-500.32,0.00025999,2]
[426874977,1782972639000,-434.07189015,0.000259,2]
[426874962,1782972639000,-200.0,0.000258,2]
[426874975,1782972639000,-808.005991,0.000258,2]
[426874984,1782972639000,-1137.03976482,0.00026,2]
[426874991,1782972639000,-668.0,0.00026016,5]
[426874983,1782972639000,-803.3,0.00025999,2]
[426874985,1782972639000,-4619.42255365,0.00026,2]
[426874986,1782972639000,-221.04398295,0.00026,2]
[426874989,1782972639000,-162.0,0.00026,2]
[426874993,1782972639000,-155.13,0.00026027,7]
[426874987,1782972639000,-50000.0,0.00026,2]
[426874988,1782972639000,-8167.8,0.00026,2]
[426874990,1782972639000,-154.0,0.00026,2]
[426874992,1782972639000,-159.31,0.00026027,7]
[426874936,1782972639000,-500.0,0.00025799,2]
[426874979,1782972639000,-150.0,0.00025957,5]
[426874969,1782972639000,-151.0,0.000258,2]
[426874974,1782972639000,-808.005991,0.000258,2]
[426874967,1782972639000,-151.0,0.000258,2]
[426874946,1782972639000,-500.32,0.00025799,2]
[426874970,1782972639000,-151.0,0.000258,2]
[426874941,1782972639000,-500.0,0.00025799,2]
[426874938,1782972639000,-500.0,0.00025799,2]
[426874937,1782972639000,-500.0,0.00025799,2]
[426874939,1782972639000,-500.0,0.00025799,2]
[426874942,1782972639000,-500.32,0.00025799,2]
[426874940,1782972639000,-500.0,0.00025799,2]
[426874944,1782972639000,-500.32,0.00025799,2]
[426874945,1782972639000,-500.32,0.00025799,2]
[426874948,1782972639000,-500.0,0.00025799,2]
[426874957,1782972639000,-803.3,0.00025799,2]
[426874950,1782972639000,-500.0,0.00025799,2]
[426874956,1782972639000,-803.3,0.00025799,2]
[426874943,1782972639000,-500.32,0.00025799,2]
[426874960,1782972639000,-803.3,0.00025799,2]
[426874971,1782972639000,-200.0,0.000258,2]
[426874958,1782972639000,-803.3,0.00025799,2]
[426874968,1782972639000,-151.0,0.000258,2]
[426874961,1782972639000,-1537003.45107647,0.000258,2]
[426874955,1782972639000,-803.3,0.00025799,2]
[426874959,1782972639000,-803.3,0.00025799,2]
[426874951,1782972639000,-500.0,0.00025799,2]
[426874947,1782972639000,-500.32,0.00025799,2]
[426874952,1782972639000,-500.0,0.00025799,2]
[426874953,1782972639000,-500.0,0.00025799,2]
[426874954,1782972639000,-3000.0,0.00025799,2]
[426874949,1782972639000,-500.0,0.00025799,2]
[426875033,1782972640000,-302.93218442,0.00026124,2]
[426875036,1782972640000,-177.4123005,0.00026124,2]
[426875035,1782972640000,-313.90623354,0.00026124,2]
[426875045,1782972640000,-314.49866899,0.00026124,2]
[426875034,1782972640000,-353.29054109,0.00026124,2]
[426875022,1782972640000,-267.79038048,0.00026122,2]
[426875031,1782972640000,-218.47797966,0.00026123,2]
[426875029,1782972640000,-431.70557937,0.00026123,2]
[426875030,1782972640000,-237.99476169,0.00026123,2]
[426875024,1782972640000,-211.97610217,0.00026123,2]
[426875037,1782972640000,-388.38969193,0.00026124,2]
[426875044,1782972640000,-160.73161154,0.00026124,2]
[426875042,1782972640000,-440.40311146,0.00026124,2]
[426875053,1782972640000,-285.47829186,0.00026124,2]
[426875041,1782972640000,-157.81024348,0.00026124,2]
[426875043,1782972640000,-428.36079753,0.00026124,2]
[426875040,1782972640000,-449.80253241,0.00026124,2]
[426875039,1782972640000,-397.42917539,0.00026124,2]
[426875046,1782972640000,-358.2212488,0.00026124,2]
[426875050,1782972640000,-431.38476967,0.00026124,2]
[426875048,1782972640000,-319.80551305,0.00026124,2]
[426875049,1782972640000,-313.75617406,0.00026124,2]
[426875056,1782972640000,-427.51082192,0.00026124,2]
[426875047,1782972640000,-406.62128354,0.00026124,2]
[426875051,1782972640000,-265.16606462,0.00026124,2]
[426875054,1782972640000,-231.75465955,0.00026124,2]
[426875032,1782972640000,-360.18773848,0.00026124,2]
[426875038,1782972640000,-304.63168673,0.00026124,2]
[426875027,1782972640000,-179.81985592,0.00026123,2]
[426874995,1782972640000,-667.0,0.00026056,5]
[426875028,1782972640000,-395.04564656,0.00026123,2]
[426874994,1782972640000,-678.0,0.00026053,5]
[426875058,1782972640000,-318.533376,0.00026124,2]
[426874998,1782972640000,-200.0,0.00026058,2]
[426874997,1782972640000,-200.0,0.00026058,2]
[426874996,1782972640000,-200.0,0.00026058,2]
[426874999,1782972640000,-200.0,0.00026058,2]
[426875005,1782972640000,-311.31750956,0.00026116,2]
[426875000,1782972640000,-676.0,0.00026069,5]
[426875002,1782972640000,-152.0,0.00026078,4]
[426875001,1782972640000,-500.0,0.00026077,2]
[426875003,1782972640000,-434.07189015,0.000261,2]
[426875004,1782972640000,-500.0,0.00026116,2]
[426875006,1782972640000,-392.10498283,0.00026121,2]
[426875008,1782972640000,-366.77494221,0.00026121,2]
[426875017,1782972640000,-645.78680103,0.00026121,2]
[426875018,1782972640000,-337.37375833,0.00026121,2]
[426875010,1782972640000,-361.71706959,0.00026121,2]
[426875009,1782972640000,-167.49131498,0.00026121,2]
[426875007,1782972640000,-293.52280167,0.00026121,2]
[426875011,1782972640000,-375.93466809,0.00026121,2]
[426875012,1782972640000,-672.04681894,0.00026121,2]
[426875015,1782972640000,-428.04263791,0.00026121,2]
[426875013,1782972640000,-313.51053462,0.00026121,2]
[426875014,1782972640000,-167.52780625,0.00026121,2]
[426875019,1782972640000,-425.09834133,0.00026121,2]
[426875020,1782972640000,-368.49119015,0.00026122,2]
[426875021,1782972640000,-393.56554576,0.00026122,2]
[426875025,1782972640000,-324.93948856,0.00026123,2]
[426875055,1782972640000,-339.96397921,0.00026124,2]
[426875016,1782972640000,-169.48591583,0.00026121,2]
[426875057,1782972640000,-406.50788367,0.00026124,2]
[426875093,1782972640000,-575.53452314,0.00026752,2]
[426875090,1782972640000,-4944.7616412,0.000267,2]
[426875088,1782972640000,-733.04105755,0.000267,2]
[426875092,1782972640000,-434.07189015,0.000267,2]
[426875087,1782972640000,-807.23350129,0.00026677,2]
[426875108,1782972640000,-500.32,0.00026799,2]
[426875099,1782972640000,-500.0,0.00026799,2]
[426875107,1782972640000,-500.32,0.00026799,2]
[426875097,1782972640000,-500.0,0.00026799,2]
[426875098,1782972640000,-500.0,0.00026799,2]
[426875106,1782972640000,-500.32,0.00026799,2]
[426875101,1782972640000,-500.0,0.00026799,2]
[426875109,1782972640000,-500.32,0.00026799,2]
[426875091,1782972640000,-2404.2233552,0.000267,2]
[426875102,1782972640000,-635.17267934,0.00026799,2]
[426875100,1782972640000,-500.0,0.00026799,2]
[426875103,1782972640000,-500.32,0.00026799,2]
[426875104,1782972640000,-500.32,0.00026799,2]
[426875111,1782972640000,-500.32,0.00026799,2]
[426875110,1782972640000,-500.32,0.00026799,2]
[426875114,1782972640000,-500.32,0.00026799,2]
[426875112,1782972640000,-500.32,0.00026799,2]
[426875113,1782972640000,-500.32,0.00026799,2]
[426875115,1782972640000,-500.32,0.00026799,2]
[426875117,1782972640000,-500.48188557,0.00026799,2]
[426875116,1782972640000,-500.32,0.00026799,2]
[426875118,1782972640000,-500.0,0.00026799,2]
[426875052,1782972640000,-384.80957959,0.00026124,2]
[426875105,1782972640000,-500.32,0.00026799,2]
[426875086,1782972640000,-152.73395867,0.00026647,2]
[426875085,1782972640000,-152.0,0.00026598,5]
[426875095,1782972640000,-491.39711385,0.0002679,2]
[426875060,1782972640000,-733.04105755,0.000262,2]
[426875059,1782972640000,-214.0,0.00026194,7]
[426875061,1782972640000,-247.0,0.00026216,5]
[426875065,1782972640000,-1698.099606,0.00026301,2]
[426875063,1782972640000,-150.0,0.00026233,5]
[426875062,1782972640000,-4944.7616412,0.00026224,2]
[426875068,1782972640000,-1698.099606,0.00026301,2]
[426875064,1782972640000,-434.07189015,0.000263,2]
[426875066,1782972640000,-1698.099606,0.00026301,2]
[426875069,1782972640000,-151.0,0.00026304,5]
[426875089,1782972640000,-4000.0,0.000267,9]
[426875071,1782972640000,-200.0,0.00026319,2]
[426875070,1782972640000,-2404.2233552,0.00026314,2]
[426875074,1782972640000,-200.0,0.00026319,2]
[426875067,1782972640000,-1698.099606,0.00026301,2]
[426875081,1782972640000,-200.0,0.00026582,2]
[426875096,1782972640000,-151.0,0.00026797,7]
[426875094,1782972640000,-491.39711385,0.0002679,2]
[426875073,1782972640000,-200.0,0.00026319,2]
[426875083,1782972640000,-200.0,0.00026582,2]
[426875084,1782972640000,-200.0,0.00026582,2]
[426875075,1782972640000,-160.44,0.0002635,2]
[426875082,1782972640000,-200.0,0.00026582,2]
[426875077,1782972640000,-4944.7616412,0.00026462,2]
[426875072,1782972640000,-200.0,0.00026319,2]
[426875080,1782972640000,-260.0,0.00026521,2]
[426875078,1782972640000,-186.81068029,0.00026496,4]
[426875076,1782972640000,-28083.93966186,0.000264,2]
[426875079,1782972640000,-434.07189015,0.000265,2]
[426875127,1782972641000,-803.3,0.00026799,2]
[426875128,1782972641000,-803.3,0.00026799,2]
[426875123,1782972641000,-803.3,0.00026799,2]
[426875124,1782972641000,-803.3,0.00026799,2]
[426875122,1782972641000,-803.3,0.00026799,2]
[426875121,1782972641000,-481.21638394,0.00026799,2]
[426875119,1782972641000,-500.0,0.00026799,2]
[426875120,1782972641000,-500.0,0.00026799,2]
[426875126,1782972641000,-803.3,0.00026799,2]
[426875125,1782972641000,-803.3,0.00026799,2]
[426875140,1782972641000,-418.89599631,0.000268,2]
[426875129,1782972641000,-803.3,0.00026799,2]
[426875139,1782972641000,-33427.08182475,0.000268,2]
[426875137,1782972641000,-2055985.83514315,0.000268,2]
[426875136,1782972641000,-803.5067645,0.00026799,2]
[426875135,1782972641000,-803.3,0.00026799,2]
[426875138,1782972641000,-151.0,0.000258,2]
[426875132,1782972641000,-803.3,0.00026799,2]
[426875133,1782972641000,-803.3,0.00026799,2]
[426875130,1782972641000,-803.3,0.00026799,2]
[426875134,1782972641000,-803.3,0.00026799,2]
[426875131,1782972641000,-803.3,0.00026799,2]
[426875143,1782972643000,-1751.5781851,0.000268,2]
[426875142,1782972643000,-212.378489,0.000258,2]
[426875146,1782972646000,-2505.87606089,0.000268,2]
[426875145,1782972646000,-61268.13777397,0.000268,2]
[426875150,1782972921000,90703.0099,0.000266,120]
[426875151,1782972976000,214182.823,0.00026426,120]
[426875152,1782973065000,5250.0,0.00030137,120]
[426875153,1782973069000,163.56,0.00024694,120]
[426875154,1782973269000,174.894106,7.945e-05,2]